bitfinex-derivatives/quotes_SOLF0:USTF0_20250106
["timestamp","ask_amount","ask_price","bid_price","bid_amount"]
[1736163718783,2.56,216.02,215.98,2.3158]
[1736163718984,2.3156,216.0,215.98,2.3158]
[1736163722288,2.56,216.02,215.97,7.30298455]
[1736163722589,2.56,216.02,215.9,79.95047993]
[1736163722590,4.8754,216.02,215.99,9.61868455]
[1736163722790,2.56,216.01,215.99,9.61868455]
[1736163723093,2.56,216.01,216.0,2.3156]
[1736163723291,1.4544,216.09,215.99,7.30298455]
[1736163723493,2.3149,216.06,216.03,9.61828455]
[1736163723991,2.315,216.05,216.03,7.30298455]
[1736163726697,2.3149,216.06,216.03,7.30298455]
[1736163727400,2.3149,216.06,216.03,9.61818455]
[1736163727697,2.3149,216.06,215.94,3.0062]
[1736163727698,4.6276,216.17,216.05,7.30298455]
[1736163727898,9.86298455,216.13,216.05,7.30298455]
[1736163728095,2.3146,216.1,216.06,2.3149]
[1736163728899,2.56,216.1,216.07,9.61778455]
[1736163729101,7.30298455,216.13,216.07,9.61778455]
[1736163729400,2.56,216.12,216.07,9.61778455]
[1736163730102,2.3144,216.11,216.07,9.61778455]
[1736163733897,2.56,216.12,216.07,9.61778455]
[1736163734099,2.3145,216.1,216.07,9.61778455]
[1736163734597,2.56,216.11,216.07,9.61778455]
[1736163735502,4.8744,216.11,216.07,9.61778455]
[1736163737306,4.8744,216.11,216.07,2.3148]
[1736163737505,4.8744,216.11,216.07,9.61778455]
[1736163740107,4.8744,216.11,216.07,7.30298455]
[1736163741003,4.8744,216.11,216.07,9.61778455]
[1736163742110,2.3148,216.08,216.04,9.61808455]
[1736163742604,9.86298455,216.11,216.03,2.3152]
[1736163742804,9.86298455,216.11,216.03,9.61818455]
[1736163743207,2.3149,216.07,216.04,2.3151]
[1736163748613,2.315,216.06,216.03,9.61818455]
[1736163750613,4.875,216.06,216.03,9.61818455]
[1736163756214,2.56,216.06,216.03,9.61818455]
[1736163756419,2.315,216.05,216.03,9.61818455]
[1736163756620,2.56,216.06,215.95,2.56]
[1736163756816,2.56,216.06,216.02,7.30298455]
[1736163757221,2.3153,216.03,216.02,7.30298455]
[1736163759322,2.56,216.06,216.02,7.30298455]
[1736163760324,2.3152,216.04,216.02,7.30298455]
[1736163765523,2.56,216.06,215.99,2.3157]
[1736163765524,2.3155,216.02,215.99,2.3157]
[1736163765728,2.56,216.01,215.99,7.30298455]
[1736163767125,2.56,216.01,215.99,9.61858455]
[1736163778332,2.56,216.01,215.99,7.30298455]
[1736163778631,2.56,216.01,215.98,7.30298455]
[1736163779037,4.8755,216.01,215.98,9.61868455]
[1736163779238,2.56,216.01,215.98,9.61868455]
[1736163780536,2.3156,216.0,215.98,9.61868455]
[1736163781131,2.56,216.01,215.99,2.3157]
[1736163781332,2.56,216.01,215.98,7.30298455]
[1736163781932,4.8755,216.01,215.98,9.61878455]
[1736163786236,2.56,216.01,215.9,78.54807993]
[1736163786542,2.3158,215.98,215.95,7.30298455]
[1736163786834,2.56,216.01,215.97,9.61878455]
[1736163787037,2.56,216.01,215.97,7.30298455]
[1736163787633,4.8755,216.01,215.98,2.3157]
[1736163788038,2.56,216.01,215.99,7.30298455]
[1736163788335,2.56,216.02,216.0,2.3156]
[1736163789432,2.56,216.07,216.01,7.30298455]
[1736163789739,2.56,216.08,216.05,7.30298455]
[1736163790732,2.56,216.08,216.06,5.59]
[1736163791339,4.8747,216.08,216.06,5.59]
[1736163795843,2.3148,216.07,216.06,5.59]
[1736163803761,7.30298455,216.07,215.99,7.30298455]
[1736163803955,2.3155,216.02,215.99,7.30298455]
[1736163804854,2.3155,216.02,215.99,9.61868455]
[1736163805254,2.3155,216.02,215.99,2.3157]
[1736163805457,2.3155,216.02,215.99,9.61868455]
[1736163806458,2.3155,216.02,216.01,7.30298455]
[1736163816072,2.3155,216.02,215.99,2.3157]
[1736163816263,2.3155,216.02,216.01,7.30298455]
[1736163816472,2.3155,216.02,216.01,13.57298455]
[1736163831680,2.3155,216.02,216.01,6.27]
[1736163832078,9.61848455,216.02,216.01,6.27]
[1736163832278,2.3155,216.02,216.01,6.27]
[1736163838983,2.3155,216.02,216.01,13.57298455]
[1736163842386,2.3155,216.02,216.01,6.27]
[1736163848194,2.54,216.04,216.01,6.27]
[1736163848392,2.52,216.03,216.01,6.27]
[1736163849487,2.52,216.03,216.01,8.5855]
[1736163850194,2.52,216.03,216.01,6.27]
[1736163850695,4.8353,216.03,216.01,6.27]
[1736163855794,4.8353,216.03,216.01,13.57298455]
[1736163856497,2.3153,216.03,216.01,13.57298455]
[1736163856690,4.8353,216.03,216.01,13.57298455]
[1736163860593,1.4293,216.07,215.92,7.30298455]
[1736163860799,7.30298455,216.02,215.94,7.30298455]
[1736163860993,2.52,216.01,215.96,7.30298455]
[1736163861396,2.3158,215.98,215.96,7.30298455]
[1736163861591,7.30298455,216.04,215.96,7.30298455]
[1736163861592,10.77766266,216.04,215.96,7.30298455]
[1736163861794,2.52,216.03,215.96,7.30298455]
[1736163861995,2.3155,216.01,215.98,7.30298455]
[1736163862195,2.52,216.03,215.98,7.30298455]
[1736163863502,2.3156,216.0,215.98,7.30298455]
[1736163864092,2.3161,215.96,215.91,2.3165]
[1736163864397,2.52,215.96,215.95,7.30298455]
[1736163864603,2.52,215.96,215.92,2.3163]
[1736163864803,2.52,215.96,215.95,7.30298455]
[1736163865103,2.52,215.97,215.95,7.30298455]
[1736163865292,2.52,215.97,215.96,7.30298455]
[1736163866102,2.52,215.97,215.89,2.8489]
[1736163866304,2.52,215.97,215.93,7.30298455]
[1736163866700,2.52,215.97,215.87,4.20558826]
[1736163867000,7.30298455,215.95,215.88,7.30298455]
[1736163867705,2.52,215.97,215.88,7.30298455]
[1736163867905,9.82298455,215.97,215.9,7.30298455]
[1736163868315,2.3161,215.95,215.9,7.30298455]
[1736163868498,9.82298455,215.97,215.9,7.30298455]
[1736163869095,2.3163,215.94,215.9,7.30298455]
[1736163869707,2.3163,215.94,215.92,7.30298455]
[1736163872403,4.8359,215.97,215.92,7.30298455]
[1736163872597,2.52,215.96,215.94,7.30298455]
[1736163874408,2.52,215.96,215.93,2.3163]
[1736163874603,2.52,215.96,215.93,9.61928455]
[1736163877209,4.836,215.96,215.93,2.3163]
[1736163878207,4.836,215.96,215.92,9.61938455]
[1736163879814,2.3164,215.93,215.89,2.3167]
[1736163880017,2.3164,215.93,215.91,7.30298455]
[1736163881318,2.52,215.96,215.91,9.61948455]
[1736163882519,2.3163,215.94,215.91,9.61948455]
[1736163886731,2.52,215.96,215.91,7.30298455]
[1736163886929,2.3163,215.93,215.91,7.30298455]
[1736163889325,2.3162,215.94,215.91,7.30298455]
[1736163890431,2.3162,215.94,215.92,2.3164]
[1736163892032,2.3162,215.94,215.91,7.30298455]
[1736163892232,2.3162,215.94,215.91,9.61948455]
[1736163894129,2.3162,215.94,215.92,2.3164]
[1736163894528,2.52,215.96,215.91,7.30298455]
[1736163894732,2.3164,215.93,215.91,7.30298455]
[1736163895337,2.3164,215.93,215.9,2.3166]
[1736163900644,2.52,215.96,215.91,2.3165]
[1736163900837,2.3163,215.94,215.91,2.3165]
[1736163902246,2.3163,215.93,215.91,2.3165]
[1736163902434,2.3163,215.93,215.9,2.3166]
[1736163902640,7.30298455,215.94,215.85,2.9727]
[1736163902842,2.52,215.96,215.87,7.30298455]
[1736163903144,11.18693902,216.02,215.85,2.9727]
[1736163903145,2.56,215.95,215.91,7.30298455]
[1736163904042,4.8761,215.95,215.92,2.3164]
[1736163904846,2.56,215.95,215.92,2.3164]
[1736163905341,2.56,215.95,215.9,7.30298455]
[1736163905644,2.56,215.95,215.93,2.3163]
[1736163906344,2.56,215.95,215.94,2.3162]
[1736163907841,2.56,215.95,215.9,7.30298455]
[1736163908042,2.56,215.95,215.93,2.3163]
[1736163913355,4.8762,215.95,215.91,2.3165]
[1736163914054,4.8762,215.95,215.92,2.3164]
[1736163914556,2.56,215.95,215.93,2.3163]
[1736163915450,2.56,215.98,215.93,7.30298455]
[1736163915649,2.56,215.98,215.95,7.30298455]
[1736163916251,2.56,215.98,215.96,2.316]
[1736163917454,2.56,215.98,215.96,9.61898455]
[1736163918453,2.56,215.98,215.96,7.30298455]
[1736163918651,2.56,215.98,215.97,2.3159]
[1736163921856,9.86298455,215.98,215.86,6.3992859]
[1736163922056,7.30298455,215.95,215.88,7.30298455]
[1736163922457,9.61918455,215.95,215.88,7.30298455]
[1736163923460,9.61918455,215.95,215.92,2.3164]
[1736163924664,2.3162,215.95,215.92,2.3164]
[1736163924856,7.30298455,215.97,215.9,7.30298455]
[1736163925159,2.56,215.98,215.92,7.30298455]
[1736163925459,4.8759,215.98,215.96,2.316]
[1736163925659,2.56,215.98,215.94,7.30298455]
[1736163926461,2.56,215.98,215.97,2.3159]
[1736163927761,2.54,215.99,215.97,2.3159]
[1736163935064,2.54,215.99,215.96,7.30298455]
[1736163935260,2.54,215.99,215.98,2.3158]
[1736163935461,2.54,215.99,215.96,7.30298455]
[1736163936066,7.30298455,216.03,215.96,7.30298455]
[1736163936266,2.54,216.02,215.96,7.30298455]
[1736163936469,2.3156,216.0,215.97,2.3159]
[1736163944370,2.3156,216.0,215.95,7.30298455]
[1736163944569,2.3156,216.0,215.98,2.3158]
[1736163944872,2.3156,216.0,215.95,7.30298455]
[1736163945169,2.3156,216.0,215.97,2.3159]
[1736163948871,2.3156,216.0,215.95,7.30298455]
[1736163949073,2.3156,216.0,215.98,2.3158]
[1736163951170,2.3156,216.0,215.97,2.3158]
[1736163951968,2.3158,215.99,215.96,2.316]
[1736163952474,2.54,215.98,215.96,2.316]
[1736163954976,2.3159,215.97,215.89,2.3167]
[1736163955175,2.3159,215.97,215.92,7.30298455]
[1736163956275,2.54,215.98,215.94,7.30298455]
[1736163956478,2.54,215.98,215.96,7.30298455]
[1736163957178,2.54,215.98,215.97,2.3159]
[1736163961885,2.3151,216.05,216.02,2.3154]
[1736163962083,2.54,216.04,216.02,2.3154]
[1736163962984,2.54,216.04,216.01,2.3155]
[1736163963784,4.8552,216.04,216.01,2.3155]
[1736163965079,2.3152,216.04,216.01,2.3155]
[1736163965281,2.54,216.03,216.01,2.3155]
[1736163966089,2.54,216.03,216.0,9.61848455]
[1736163967687,2.54,216.03,216.0,2.3155]
[1736163969083,4.8553,216.03,216.0,2.3155]
[1736163969486,2.54,216.03,215.98,7.30298455]
[1736163969695,2.3154,216.02,215.99,2.3157]
[1736163970294,2.54,216.03,215.97,2.3158]
[1736163971189,2.3155,216.01,215.97,2.3158]
[1736163972589,2.3156,216.0,215.97,2.3158]
[1736163975999,7.30298455,216.01,215.95,2.316]
[1736163976901,7.30298455,216.01,215.96,2.316]
[1736163978203,2.3158,215.99,215.96,2.316]
[1736163978394,2.54,215.98,215.96,2.316]
[1736163984102,2.54,215.98,215.92,1.4786]
[1736163984396,2.54,215.98,215.9,2.8941]
[1736163984599,2.54,215.98,215.86,1.5172]
[1736163984798,2.3165,215.92,215.9,7.30298455]
[1736163985993,2.3165,215.92,215.89,2.3167]
[1736163986301,2.3165,215.92,215.9,7.30298455]
[1736163987104,2.3165,215.92,215.89,9.61968455]
[1736163988104,2.3165,215.92,215.9,2.3166]
[1736163988695,4.8563,215.93,215.9,2.3166]
[1736163989401,2.54,215.93,215.9,2.3166]
[1736163989606,2.3164,215.92,215.9,2.3166]
[1736163989806,2.3164,215.92,215.89,2.3167]
[1736163990002,2.3166,215.91,215.88,7.30298455]
[1736163991508,2.3166,215.91,215.88,9.61988455]
[1736163992215,9.84298455,215.93,215.86,9.61998455]
[1736163992504,7.30298455,215.91,215.85,7.30298455]
[1736163993108,2.54,215.93,215.85,7.30298455]
[1736163993307,2.54,215.93,215.87,7.30298455]
[1736163994013,2.54,215.93,215.91,2.3165]
[1736163994812,2.54,215.93,215.9,2.3166]
[1736163995011,2.54,215.93,215.87,7.30298455]
[1736163995209,9.84298455,215.93,215.8,2.54532671]
[1736163995712,2.3166,215.91,215.86,9.61998455]
[1736163995908,2.3166,215.91,215.86,7.30298455]
[1736163997215,2.3166,215.91,215.8,2.54532671]
[1736163997419,2.3166,215.91,215.87,9.61988455]
[1736163998616,2.3166,215.91,215.87,7.30298455]
[1736163998816,2.3166,215.91,215.88,2.3169]
[1736163999011,2.3166,215.91,215.87,7.30298455]
[1736163999714,2.3166,215.91,215.87,9.61988455]
[1736163999916,4.8564,215.93,215.87,7.30298455]
[1736164000310,4.8564,215.93,215.89,9.61968455]
[1736164000517,2.54,215.92,215.89,7.30298455]
[1736164001113,2.54,215.92,215.9,2.3166]
[1736164001616,2.54,215.92,215.89,9.61968455]
[1736164002717,4.8564,215.92,215.89,9.61968455]
[1736164002914,4.8564,215.92,215.89,2.3167]
[1736164004016,4.8564,215.92,215.87,7.30298455]
[1736164004218,4.8564,215.92,215.88,2.3168]
[1736164007118,2.3167,215.9,215.86,2.317]
[1736164007321,2.3167,215.9,215.87,7.30298455]
[1736164008325,2.3167,215.9,215.87,9.61988455]
[1736164009021,2.3167,215.9,215.87,2.3169]
[1736164009221,2.3167,215.9,215.87,9.61988455]
[1736164014222,2.54,215.92,215.87,7.30298455]
[1736164014525,4.8565,215.92,215.88,2.3168]
[1736164014922,2.3166,215.91,215.88,2.3168]
[1736164016121,2.54,215.92,215.88,2.3168]
[1736164016327,4.8565,215.92,215.89,7.30298455]
[1736164016531,2.54,215.92,215.89,7.30298455]
[1736164016723,2.3161,215.95,215.89,7.30298455]
[1736164017027,2.54,215.94,215.93,7.30298455]
[1736164017419,2.54,215.95,215.93,7.30298455]
[1736164018432,2.54,215.95,215.93,9.61928455]
[1736164018825,2.54,215.96,215.93,7.30298455]
[1736164020127,2.54,215.96,215.93,9.61928455]
[1736164020627,2.3161,215.95,215.93,7.30298455]
[1736164020824,2.54,215.96,215.93,7.30298455]
[1736164021229,2.54,215.96,215.83,2.54]
[1736164021426,2.54,215.96,215.92,7.30298455]
[1736164021827,2.3161,215.95,215.92,7.30298455]
[1736164022631,2.3161,215.95,215.92,9.61938455]
[1736164022929,2.3162,215.94,215.92,9.61938455]
[1736164023325,2.3162,215.94,215.92,7.30298455]
[1736164023725,2.3163,215.94,215.92,7.30298455]
[1736164024126,2.3163,215.94,215.92,9.61938455]
[1736164024326,2.3163,215.94,215.92,7.30298455]
[1736164026629,2.3161,215.95,215.92,9.61938455]
[1736164028033,2.3161,215.95,215.92,7.30298455]
[1736164028333,2.3161,215.95,215.92,9.61938455]
[1736164030738,2.3161,215.95,215.92,7.30298455]
[1736164031035,2.3161,215.95,215.93,2.3163]
[1736164032229,4.856,215.96,215.93,2.3163]
[1736164032840,2.54,215.96,215.94,2.3162]
[1736164036441,2.3163,215.94,215.9,2.3166]
[1736164036637,2.54,215.96,215.9,2.3166]
[1736164036842,2.54,215.96,215.9,9.61958455]
[1736164037040,2.54,215.96,215.94,7.30298455]
[1736164038446,2.3157,215.99,215.95,2.316]
[1736164038637,2.56,215.98,215.94,7.30298455]
[1736164039439,2.56,215.98,215.95,2.3161]
[1736164039836,4.8758,215.98,215.95,2.3161]
[1736164041848,2.3158,215.98,215.95,2.3161]
[1736164042146,2.56,215.97,215.96,7.30298455]
[1736164044951,4.8759,215.97,215.96,7.30298455]
[1736164046753,2.56,215.97,215.94,7.30298455]
[1736164046954,2.56,215.97,215.92,7.30298455]
[1736164047560,2.3162,215.95,215.92,7.30298455]
[1736164048059,2.3161,215.96,215.92,7.30298455]
[1736164048258,2.56,215.97,215.92,9.61938455]
[1736164049561,2.3162,215.95,215.92,9.61938455]
[1736164050654,7.30298455,215.99,215.92,7.30298455]
[1736164050855,4.8758,215.98,215.95,2.3161]
[1736164051057,2.56,215.97,215.94,7.30298455]
[1736164051467,2.56,215.97,215.96,7.30298455]
[1736164052566,2.56,215.97,215.96,2.316]
[1736164052859,3.47542178,216.04,215.95,7.30298455]
[1736164053064,2.3156,216.01,215.97,9.61878455]
[1736164053362,11.69995492,216.05,215.97,9.61878455]
[1736164053565,2.56,216.04,216.01,7.30298455]
[1736164053756,2.56,216.03,216.01,7.30298455]
[1736164054160,4.91322782,216.08,216.02,2.3154]
[1736164054362,2.56,216.04,216.02,2.3154]
[1736164054558,2.56,216.04,216.03,7.30298455]
[1736164055067,2.56,216.04,216.02,7.30298455]
[1736164057563,2.3149,216.06,216.02,9.61828455]
[1736164057869,2.56,216.05,216.02,9.61828455]
[1736164058458,2.3149,216.06,216.02,9.61828455]
[1736164058664,3.47492782,216.11,216.02,7.30298455]
[1736164058858,2.3147,216.09,216.05,2.315]
[1736164059064,2.56,216.08,216.05,2.315]
[1736164059767,7.30298455,216.12,216.06,7.30298455]
[1736164059970,1.5274,216.16,216.08,7.30298455]
[1736164060265,7.30298455,216.14,216.08,7.30298455]
[1736164060668,2.3145,216.11,216.08,7.30298455]
[1736164060972,2.3145,216.11,216.07,2.3148]
[1736164062162,2.3145,216.11,216.08,7.30298455]
[1736164062560,7.30298455,216.14,216.08,7.30298455]
[1736164062561,2.3145,216.1,216.08,7.30298455]
[1736164064666,1.5274,216.16,216.08,7.30298455]
[1736164064971,2.3142,216.13,216.08,7.30298455]
[1736164065171,2.56,216.15,216.08,9.61758455]
[1736164065672,2.3143,216.12,216.08,9.61758455]
[1736164066574,2.3143,216.12,216.1,7.30298455]
[1736164080483,2.3144,216.11,216.09,7.30298455]
[1736164080679,7.30298455,216.12,215.95,6.88595461]
[1736164080872,7.30298455,216.12,216.05,7.30298455]
[1736164081081,2.54,216.14,215.98,2.54]
[1736164081082,7.30298455,216.1,215.98,2.54]
[1736164081377,2.3152,216.04,216.01,7.30298455]
[1736164081578,2.3152,216.04,216.0,2.3155]
[1736164081775,2.3152,216.04,216.01,7.30298455]
[1736164082182,7.30298455,216.03,215.84,76.79143091]
[1736164082383,7.30298455,216.03,215.96,7.30298455]
[1736164082579,7.30298455,216.03,215.89,1.4443]
[1736164082780,7.30298455,216.03,215.96,7.30298455]
[1736164083581,2.3157,216.0,215.96,7.30298455]
[1736164083980,2.3157,216.0,215.96,9.61898455]
[1736164085287,2.3147,216.08,215.99,2.3156]
[1736164085477,2.54,216.07,216.01,7.30298455]
[1736164086184,2.54,216.07,215.91,2.54]
[1736164086381,2.54,216.07,216.01,7.30298455]
[1736164086781,2.3153,216.04,216.01,7.30298455]
[1736164087983,2.3153,216.03,216.01,7.30298455]
[1736164088687,7.30298455,216.06,215.91,2.54]
[1736164088887,7.30298455,216.04,215.98,7.30298455]
[1736164089089,7.30298455,216.04,215.96,7.30298455]
[1736164089691,7.30298455,216.04,215.94,2.3162]
[1736164089886,2.3158,215.99,215.96,7.30298455]
[1736164090084,2.54,215.99,215.98,7.30298455]
[1736164094289,1.4807,216.06,215.98,7.30298455]
[1736164094497,2.54,216.02,215.89,1.4443]
[1736164094793,2.54,216.02,216.01,7.30298455]
[1736164095489,2.54,216.02,215.91,2.54]
[1736164095683,2.54,216.02,215.98,7.30298455]
[1736164095987,2.54,216.02,215.89,1.4443]
[1736164096192,2.54,216.02,215.95,7.30298455]
[1736164096392,2.316,215.97,215.95,7.30298455]
[1736164098596,2.316,215.97,215.95,9.61908455]
[1736164099494,4.856,215.97,215.95,7.30298455]
[1736164101997,2.54,215.97,215.95,9.61908455]
[1736164104503,2.54,215.97,215.96,2.316]
[1736164104800,2.54,215.97,215.95,7.30298455]
[1736164105003,2.54,215.97,215.89,1.4443]
[1736164105193,2.54,215.97,215.95,9.61908455]
[1736164105502,2.54,215.97,215.96,7.30298455]
[1736164105703,2.54,215.97,215.91,2.3165]
[1736164105903,2.54,215.97,215.95,7.30298455]
[1736164106403,4.8559,215.97,215.95,9.61908455]
[1736164108004,2.54,215.97,215.95,9.61908455]
[1736164115103,2.54,215.97,215.96,2.316]
[1736164123410,2.54,215.97,215.89,1.4443]
[1736164123610,2.3161,215.95,215.93,7.30298455]
[1736164124618,2.3161,215.95,215.93,9.61928455]
[1736164124812,2.54,215.97,215.93,9.61928455]
[1736164125007,2.316,215.96,215.93,9.61928455]
[1736164125717,2.316,215.96,215.93,7.30298455]
[1736164125918,2.316,215.96,215.95,7.30298455]
[1736164128013,2.54,215.97,215.95,9.61908455]
[1736164129311,2.54,215.97,215.95,7.30298455]
[1736164129919,2.54,215.97,215.96,2.316]
[1736164132419,2.54,215.97,215.96,9.61898455]
[1736164132917,2.3158,215.99,215.96,9.61898455]
[1736164133222,2.54,215.98,215.96,9.61898455]
[1736164133921,2.54,215.98,215.97,2.3159]
[1736164135026,2.54,215.98,215.96,7.30298455]
[1736164135240,2.54,215.98,215.96,9.61898455]
[1736164135523,2.54,215.98,215.96,2.316]
[1736164135719,2.54,215.98,215.96,9.61898455]
[1736164135925,2.54,215.98,215.96,2.316]
[1736164136226,2.54,215.98,215.96,9.61898455]
[1736164137028,2.54,215.98,215.96,2.316]
[1736164137222,2.54,215.98,215.97,7.30298455]
[1736164137524,2.54,215.98,215.97,9.61888455]
[1736164138923,2.54,215.98,215.96,2.316]
[1736164139230,2.54,215.98,215.97,7.30298455]
[1736164140928,2.54,216.0,215.97,9.61888455]
[1736164141125,2.54,216.0,215.99,7.30298455]
[1736164143130,4.8556,216.0,215.99,7.30298455]
[1736164143320,1.4807,216.06,215.99,7.30298455]
[1736164143630,16.62616684,216.1,216.04,7.30298455]
[1736164143832,6.01526752,216.09,216.04,7.30298455]
[1736164144128,2.3149,216.07,216.04,7.30298455]
[1736164144828,4.8549,216.06,216.04,7.30298455]
[1736164146626,2.3149,216.06,216.04,7.30298455]
[1736164146822,2.54,216.07,216.04,7.30298455]
[1736164147923,2.54,216.07,215.92,2.54]
[1736164147924,4.8549,216.07,215.92,2.54]
[1736164148126,2.54,216.07,216.03,7.30298455]
[1736164149026,2.3151,216.05,216.03,7.30298455]
[1736164152426,2.3151,216.05,216.01,2.3154]
[1736164152737,2.3151,216.05,216.03,7.30298455]
[1736164157040,2.3152,216.04,216.03,7.30298455]
[1736164160141,2.3152,216.04,216.0,2.3156]
[1736164160339,7.30298455,216.06,215.89,1.4443]
[1736164160843,7.30298455,216.06,215.99,7.30298455]
[1736164162342,2.3154,216.02,216.01,7.30298455]
[1736164162647,4.8754,216.02,216.01,7.30298455]
[1736164173256,2.56,216.02,215.99,7.30298455]
[1736164173456,2.3156,216.01,215.99,7.30298455]
[1736164173756,2.56,216.02,215.99,7.30298455]
[1736164175455,2.3156,216.0,215.99,7.30298455]
[1736164180864,2.3158,215.98,215.95,2.316]
[1736164181064,2.3158,215.98,215.97,7.30298455]
[1736164182167,2.56,216.02,215.97,7.30298455]
[1736164184473,2.3157,215.99,215.96,2.316]
[1736164184675,2.3157,215.99,215.97,7.30298455]
[1736164187877,2.3157,215.99,215.89,1.4443]
[1736164188069,2.3157,215.99,215.97,7.30298455]
[1736164188869,2.56,216.02,215.96,7.30298455]
[1736164189071,2.3158,215.98,215.96,7.30298455]
[1736164189268,2.54,215.97,215.95,2.316]
[1736164189473,2.54,215.97,215.94,7.30298455]
[1736164189672,2.3161,215.96,215.94,7.30298455]
[1736164190373,2.3161,215.96,215.94,9.61918455]
[1736164191172,2.54,215.97,215.94,9.61918455]
[1736164191375,4.8559,215.97,215.96,7.30298455]
[1736164194585,2.54,215.98,215.97,2.3159]
[1736164194885,2.54,215.98,215.97,9.61888455]
[1736164201986,7.30298455,216.09,215.97,7.30298455]
[1736164202189,2.54,216.08,216.02,7.30298455]
[1736164202889,2.3151,216.04,216.02,7.30298455]
[1736164203086,2.54,216.03,216.0,7.30298455]
[1736164203292,2.54,216.02,216.0,7.30298455]
[1736164203687,2.3155,216.01,215.98,9.61878455]
[1736164204090,2.54,216.02,215.98,7.30298455]
[1736164204287,2.3157,216.0,215.98,7.30298455]
[1736164212097,2.3157,215.99,215.98,7.30298455]
[1736164214201,4.8557,215.99,215.98,7.30298455]
[1736164218102,2.54,215.99,215.89,1.4443]
[1736164218297,2.3162,215.94,215.91,2.3165]
[1736164218496,2.3162,215.94,215.93,7.30298455]
[1736164221598,2.3162,215.94,215.91,2.3165]
[1736164221801,2.3162,215.94,215.93,7.30298455]
[1736164222201,2.3162,215.94,215.91,2.3165]
[1736164222402,2.3162,215.94,215.93,7.30298455]
[1736164223901,2.3161,215.95,215.93,7.30298455]
[1736164224102,2.54,215.99,215.94,7.30298455]
[1736164224302,2.54,215.99,215.98,7.30298455]
[1736164224502,2.54,215.99,215.98,9.61878455]
[1736164225099,2.3155,216.01,215.98,9.61878455]
[1736164225405,4.8555,216.01,215.98,9.61878455]
[1736164226302,2.54,216.01,215.98,9.61878455]
[1736164226505,2.3156,216.0,215.98,9.61878455]
[1736164229914,4.8555,216.01,215.98,9.61878455]
[1736164230312,4.8555,216.01,215.98,2.3158]
[1736164230511,4.8555,216.01,215.98,9.61878455]
[1736164233009,4.8555,216.01,215.98,2.3158]
[1736164233216,4.8555,216.01,215.98,9.61878455]
[1736164235016,3.47496092,216.04,215.98,7.30298455]
[1736164235217,2.54,216.03,216.0,9.61848455]
[1736164235616,2.54,216.03,216.0,7.30298455]
[1736164235808,2.3152,216.04,216.0,7.30298455]
[1736164235809,2.54,216.02,216.01,2.3154]
[1736164236314,2.54,216.03,216.01,2.3154]
[1736164236518,2.54,216.04,216.02,7.30298455]
[1736164236721,2.54,216.04,216.03,2.3152]
[1736164236913,2.54,216.05,216.03,2.3152]
[1736164237720,2.54,216.05,216.04,7.30298455]
[1736164237918,2.54,216.06,216.04,9.61808455]
[1736164238116,2.54,216.06,216.05,7.30298455]
[1736164240123,7.48029958,216.11,216.05,7.30298455]
[1736164240322,2.54,216.1,216.05,7.30298455]
[1736164240523,2.3148,216.07,216.05,7.30298455]
[1736164241326,4.8548,216.07,216.05,7.30298455]
[1736164245621,2.54,216.07,216.05,7.30298455]
[1736164245831,2.3149,216.06,216.05,7.30298455]
[1736164251825,2.3152,216.04,216.03,7.30298455]
[1736164257635,9.84298455,216.08,216.01,7.30298455]
[1736164258437,2.3154,216.02,216.01,7.30298455]
[1736164259435,2.3158,215.99,215.96,2.9292]
[1736164259641,2.3158,215.99,215.98,7.30298455]
[1736164259836,2.3158,215.99,215.96,2.9292]
[1736164260032,2.3158,215.99,215.98,7.30298455]